bitfinex/quotes_BTCUSD_20250814
["timestamp","ask_amount","ask_price","bid_price","bid_amount"]
[1755168275335,0.17402491,121070.0,121060.0,0.46594325]
[1755168275737,0.17598491,121070.0,121060.0,0.46594325]
[1755168276846,0.17402491,121070.0,121060.0,0.46892325]
[1755168277045,0.17402491,121070.0,121060.0,0.51509558]
[1755168277243,0.01256,121070.0,121060.0,0.51509558]
[1755168277480,0.17775368,121070.0,121060.0,0.51509558]
[1755168278334,0.17775368,121070.0,121060.0,0.46820325]
[1755168278563,0.17775368,121070.0,121060.0,0.28968325]
[1755168278735,0.01256,121070.0,121060.0,0.28968325]
[1755168278936,0.01256,121070.0,121060.0,0.46764325]
[1755168279143,0.17775368,121070.0,121060.0,0.46764325]
[1755168279339,0.17775368,121070.0,121060.0,0.55012768]
[1755168280244,0.17775368,121070.0,121060.0,0.46764325]
[1755168280463,0.17775368,121070.0,121060.0,0.46466325]
[1755168280662,0.17775368,121070.0,121060.0,0.46764325]
[1755168282650,0.17775368,121070.0,121060.0,0.28968325]
[1755168282873,0.17775192,121080.0,121060.0,0.46616325]
[1755168283076,0.17775192,121080.0,121070.0,0.26023678]
[1755168283276,0.17775192,121080.0,121070.0,0.26133325]
[1755168284265,0.17990192,121080.0,121070.0,0.08485325]
[1755168284447,0.18309192,121080.0,121070.0,0.26232662]
[1755168284582,0.18309192,121080.0,121070.0,0.26129325]
[1755168284783,0.18309192,121080.0,121070.0,0.29585982]
[1755168284988,0.17990192,121080.0,121070.0,0.29585982]
[1755168285416,0.17990192,121080.0,121070.0,0.26329325]
[1755168286648,0.17775192,121080.0,121070.0,0.26329325]
[1755168286836,0.17775192,121080.0,121070.0,0.26627325]
[1755168287036,0.29009954,121090.0,121070.0,0.26329325]
[1755168287241,0.29009954,121090.0,121080.0,0.17504]
[1755168287442,0.29224954,121090.0,121080.0,0.28425058]
[1755168287629,0.29543954,121090.0,121080.0,0.28425058]
[1755168288253,0.29543954,121090.0,121080.0,0.10921058]
[1755168288461,0.29543954,121090.0,121080.0,0.25768325]
[1755168288674,0.29543954,121090.0,121080.0,0.45572325]
[1755168288885,0.22859183,121090.0,121080.0,0.45572325]
[1755168289995,0.22859183,121090.0,121080.0,0.45753325]
[1755168289996,0.22325183,121090.0,121080.0,0.45753325]
[1755168290433,0.22325183,121090.0,121080.0,0.45693325]
[1755168290639,0.22325183,121090.0,121080.0,0.50292458]
[1755168291227,0.17391718,121090.0,121080.0,0.50590458]
[1755168291689,0.17391718,121090.0,121080.0,0.50292458]
[1755168292750,0.16565876,121090.0,121080.0,0.50292458]
[1755168292960,0.16780876,121090.0,121080.0,0.50292458]
[1755168293166,0.17099876,121090.0,121080.0,0.50392458]
[1755168293373,0.17099876,121090.0,121080.0,0.50292458]
[1755168293582,0.17099876,121090.0,121080.0,0.50392458]
[1755168293787,0.16780876,121090.0,121080.0,0.50492458]
[1755168294223,0.16780876,121090.0,121080.0,0.50392458]
[1755168294628,0.16780876,121090.0,121080.0,0.50492458]
[1755168295467,0.16565876,121090.0,121080.0,0.50492458]
[1755168295883,0.00049236,121090.0,121080.0,0.3513136]
[1755168296305,0.00049236,121090.0,121080.0,0.5236736]
[1755168296516,0.00049236,121090.0,121080.0,0.5206936]
[1755168296727,0.00049236,121090.0,121080.0,0.5236736]
[1755168298821,0.16565876,121090.0,121080.0,0.5236736]
[1755168299049,0.00049236,121090.0,121080.0,0.5236736]
[1755168299664,0.16565876,121090.0,121080.0,0.5236736]
[1755168299878,0.00049236,121090.0,121080.0,0.5236736]
[1755168300087,0.23784647,121090.0,121080.0,0.30021227]
[1755168300304,0.23784647,121090.0,121080.0,0.45516325]
[1755168300508,0.23784647,121090.0,121080.0,0.28276325]
[1755168300932,0.73835591,121090.0,121080.0,0.28276325]
[1755168301140,0.08524007,121090.0,121080.0,0.45500325]
[1755168301400,0.00049236,121090.0,121080.0,0.30532227]
[1755168301830,0.00049236,121090.0,121080.0,0.47748227]
[1755168302043,0.00049236,121090.0,121080.0,0.30532227]
[1755168302256,0.00049236,121090.0,121080.0,0.47760227]
[1755168302472,0.16565876,121090.0,121080.0,0.5223825]
[1755168302922,0.16780876,121090.0,121080.0,0.5223825]
[1755168303147,0.16780876,121090.0,121080.0,0.50493348]
[1755168303371,0.17099876,121090.0,121080.0,0.50469348]
[1755168303614,0.00049236,121090.0,121080.0,0.50767348]
[1755168303844,0.00049236,121090.0,121080.0,0.5251225]
[1755168304075,0.16565876,121090.0,121080.0,0.3530825]
[1755168304298,0.00049236,121090.0,121080.0,0.5219825]
[1755168304743,0.00049236,121090.0,121080.0,0.5249625]
[1755168305729,0.16565876,121090.0,121080.0,0.5249625]
[1755168305955,0.16565876,121090.0,121080.0,0.5217425]
[1755168306171,0.16565876,121090.0,121080.0,0.3501025]
[1755168306392,0.00049236,121090.0,121080.0,0.5216625]
[1755168306829,0.00049236,121090.0,121080.0,0.5248825]
[1755168307245,0.00049236,121090.0,121080.0,0.3533225]
[1755168307456,0.16565876,121090.0,121080.0,0.5213025]
[1755168307975,0.00049236,121090.0,121080.0,0.3501025]
[1755168308187,0.02525136,121090.0,121080.0,0.5213025]
[1755168308574,0.02525136,121090.0,121080.0,0.5245225]
[1755168308850,0.02525136,121090.0,121080.0,0.47676227]
[1755168309065,0.02525136,121090.0,121080.0,0.47664227]
[1755168309490,0.19041776,121090.0,121080.0,0.47664227]
[1755168309897,0.02525136,121090.0,121080.0,0.47664227]
[1755168310109,0.19573776,121090.0,121080.0,0.28489325]
[1755168310312,0.27514547,121090.0,121080.0,0.31157458]
[1755168310518,0.27514547,121090.0,121080.0,0.48233458]
[1755168310735,0.27514547,121090.0,121080.0,0.48225458]
[1755168311139,0.27514547,121090.0,121080.0,0.45344325]
[1755168311780,0.27514547,121090.0,121080.0,0.28276325]
[1755168311994,0.78616491,121090.0,121080.0,0.45332325]
[1755168312409,0.29821547,121090.0,121080.0,0.45332325]
[1755168312881,0.29821547,121090.0,121080.0,0.45232325]
[1755168313092,0.29821547,121090.0,121080.0,0.45132325]
[1755168313305,0.29921547,121090.0,121080.0,0.45132325]
[1755168313513,0.30021547,121090.0,121080.0,0.45132325]
[1755168313732,0.21029776,121090.0,121080.0,0.49645558]
[1755168314192,0.21029776,121090.0,121080.0,0.49553558]
[1755168314622,0.21029776,121090.0,121080.0,0.32589558]
[1755168314835,0.21029776,121090.0,121080.0,0.45040325]
[1755168316863,0.21029776,121090.0,121080.0,0.45012325]
[1755168317065,0.27714547,121090.0,121080.0,0.45012325]
[1755168317484,0.76509491,121090.0,121080.0,0.28076325]
[1755168317691,0.27714547,121090.0,121080.0,0.44972325]
[1755168317911,0.27714547,121090.0,121080.0,0.28076325]
[1755168318116,0.27714547,121090.0,121080.0,0.44964325]
[1755168318321,0.27714547,121090.0,121080.0,0.28076325]
[1755168318531,0.76509491,121090.0,121080.0,0.47771958]
[1755168318737,0.27714547,121090.0,121080.0,0.47771958]
[1755168318953,0.21029776,121090.0,121080.0,0.47771958]
[1755168319500,0.21029776,121090.0,121080.0,0.44964325]
[1755168321164,0.56611547,121090.0,121080.0,0.19804]
[1755168321461,0.49926776,121090.0,121080.0,0.36608]
[1755168322096,0.56611547,121090.0,121080.0,0.36608]
[1755168322302,1.05406491,121090.0,121080.0,0.36608]
[1755168322506,0.54304547,121090.0,121080.0,0.234648]
[1755168322708,0.54304547,121090.0,121080.0,0.402368]
[1755168323070,0.47303776,121090.0,121080.0,0.31951125]
[1755168323478,0.20497776,121090.0,121080.0,0.48695125]
[1755168323689,0.20497776,121090.0,121080.0,0.45356325]
[1755168323839,0.03981136,121090.0,121080.0,0.45356325]
[1755168324097,0.03981136,121090.0,121080.0,0.28612325]
[1755168324286,0.02725136,121090.0,121080.0,0.48205558]
[1755168324496,0.02725136,121090.0,121080.0,0.48189558]
[1755168324954,0.19241776,121090.0,121080.0,0.31473558]
[1755168325170,0.19241776,121090.0,121080.0,0.44998325]
[1755168325171,0.20397776,121090.0,121080.0,0.44998325]
[1755168325386,0.20297776,121090.0,121080.0,0.28290325]
[1755168325610,0.20490776,121090.0,121080.0,0.28290325]
[1755168325822,0.20805776,121090.0,121080.0,0.44756325]
[1755168326037,0.27490547,121090.0,121080.0,0.28076325]
[1755168326252,0.27490547,121090.0,121080.0,0.44848325]
[1755168326464,0.27490547,121090.0,121080.0,0.44840325]
[1755168327116,0.27490547,121090.0,121080.0,0.44940325]
[1755168327539,0.27490547,121090.0,121080.0,0.49434357]
[1755168327756,0.27490547,121090.0,121080.0,0.44940325]
[1755168328003,0.27490547,121090.0,121080.0,0.28276325]
[1755168328230,0.27490547,121090.0,121080.0,0.44900325]
[1755168329068,0.27490547,121090.0,121080.0,0.45114325]
[1755168329322,0.27175547,121090.0,121080.0,0.45114325]
[1755168329500,0.27175547,121090.0,121080.0,0.49593758]
[1755168329694,0.27175547,121090.0,121080.0,0.49379758]
[1755168329896,0.27490547,121090.0,121080.0,0.49379758]
[1755168330511,0.27490547,121090.0,121080.0,0.20004]
[1755168330728,0.76285491,121090.0,121080.0,0.20004]
[1755168330936,0.27490547,121090.0,121080.0,0.36552]
[1755168332254,0.76285491,121090.0,121080.0,0.36552]
[1755168332446,0.6960072,121090.0,121080.0,0.36552]
[1755168333683,0.20805776,121090.0,121080.0,0.36552]
[1755168333913,0.6960072,121090.0,121080.0,0.36552]
[1755168334515,0.20805776,121090.0,121080.0,0.36552]
[1755168335367,0.20513776,121090.0,121080.0,0.48561525]
[1755168335592,0.20297776,121090.0,121080.0,0.48561525]
[1755168336534,0.20297776,121090.0,121080.0,0.44906325]
[1755168339398,0.20510776,121090.0,121080.0,0.44906325]
[1755168339850,0.20807776,121090.0,121080.0,0.44628325]
[1755168340255,0.20807776,121090.0,121080.0,0.44128325]
[1755168340670,0.20807776,121090.0,121080.0,0.44323325]
[1755168340671,0.20510776,121090.0,121080.0,0.44323325]
[1755168340885,0.6960272,121090.0,121080.0,0.32239058]
[1755168341087,0.20807776,121090.0,121080.0,0.44032325]
[1755168341217,0.20807776,121090.0,121080.0,0.27776325]
[1755168341419,0.6960272,121090.0,121080.0,0.44032325]
[1755168341622,0.6960272,121090.0,121080.0,0.27776325]
[1755168341884,0.6960272,121090.0,121080.0,0.36044]
[1755168342900,0.6960272,121090.0,121080.0,0.19804]
[1755168343101,0.6960272,121090.0,121080.0,0.36032]
[1755168343307,0.6970272,121090.0,121080.0,0.36032]
[1755168343515,0.6990272,121090.0,121080.0,0.36032]
[1755168345666,0.21107776,121090.0,121080.0,0.36032]
[1755168345867,0.6990272,121090.0,121080.0,0.19804]
[1755168346073,0.6990272,121090.0,121080.0,0.3594]
[1755168347797,0.6990272,121090.0,121080.0,0.35924]
[1755168348002,0.21107776,121090.0,121080.0,0.35888]
[1755168348208,0.6990272,121090.0,121080.0,0.35888]
[1755168348837,0.6990272,121090.0,121080.0,0.16084]
[1755168353410,0.16519368,121070.0,121060.0,0.19804]
[1755168353682,0.16519368,121070.0,121060.0,0.44223325]
[1755168354097,0.18996268,121070.0,121060.0,0.44223325]
[1755168354962,0.69557212,121070.0,121060.0,0.19904]
[1755168355161,0.69260212,121070.0,121060.0,0.36039]
[1755168355502,0.20465268,121070.0,121060.0,0.36039]
[1755168355701,0.20252268,121070.0,121060.0,0.36039]
[1755168356119,0.20252268,121070.0,121060.0,0.35979]
[1755168356484,0.20252268,121070.0,121060.0,0.36283]
[1755168356677,0.20252268,121070.0,121060.0,0.20403]
[1755168356891,0.20252268,121070.0,121060.0,0.36283]
[1755168357093,0.20352268,121070.0,121060.0,0.20303]
[1755168357296,0.20352268,121070.0,121060.0,0.36167]
[1755168357622,0.20352268,121070.0,121060.0,0.20303]
[1755168357846,0.20352268,121070.0,121060.0,0.44431325]
[1755168361085,0.20352268,121070.0,121060.0,0.28575325]
[1755168361287,0.20352268,121070.0,121060.0,0.44347325]
[1755168361773,0.20352268,121070.0,121060.0,0.28575325]
[1755168361987,0.20352268,121070.0,121060.0,0.44335325]
[1755168362248,0.20352268,121070.0,121060.0,0.44327325]
[1755168362485,0.20352268,121070.0,121060.0,0.28575325]
[1755168362691,0.20352268,121070.0,121060.0,0.44323325]
[1755168362898,0.20352268,121070.0,121060.0,0.44315325]
[1755168363532,0.20352268,121070.0,121060.0,0.33006858]
[1755168363743,0.20352268,121070.0,121060.0,0.44295325]
[1755168363951,0.20352268,121070.0,121060.0,0.28575325]
[1755168364163,0.20352268,121070.0,121060.0,0.44295325]
[1755168364820,0.19096268,121070.0,121060.0,0.44295325]
[1755168365037,0.19096268,121070.0,121060.0,0.33004858]
[1755168365271,0.19096268,121070.0,121060.0,0.48684858]
[1755168365725,0.19096268,121070.0,121060.0,0.48680858]
[1755168366405,0.18996268,121070.0,121060.0,0.48680858]
[1755168366642,0.18996268,121070.0,121060.0,0.48780858]
[1755168367075,0.18996268,121070.0,121060.0,0.44307325]
[1755168367988,0.18996268,121070.0,121060.0,0.28675325]
[1755168368201,0.18996268,121070.0,121060.0,0.44307325]
[1755168369518,0.25681039,121070.0,121060.0,0.44307325]
[1755168369734,0.18996268,121070.0,121060.0,0.44307325]
[1755168370006,0.20252268,121070.0,121060.0,0.44307325]
[1755168370228,0.20252268,121070.0,121060.0,0.28675325]
[1755168370447,0.20252268,121070.0,121060.0,0.31542858]
[1755168370654,0.20252268,121070.0,121060.0,0.44299325]
[1755168371944,0.27442039,121070.0,121060.0,0.43995325]
[1755168372158,0.20757268,121070.0,121060.0,0.43995325]
[1755168372586,0.20757268,121070.0,121060.0,0.43971325]
[1755168372796,0.20453268,121070.0,121060.0,0.43971325]
[1755168373009,0.20757268,121070.0,121060.0,0.32799858]
[1755168373219,0.20757268,121070.0,121060.0,0.48395858]
[1755168373915,0.20252268,121070.0,121060.0,0.48410858]
[1755168374612,0.20252268,121070.0,121060.0,0.32814858]
[1755168374847,0.20757268,121070.0,121060.0,0.28176325]
[1755168375344,0.20757268,121070.0,121060.0,0.43744325]
[1755168376677,0.20757268,121070.0,121060.0,0.43748325]
[1755168377058,0.27442039,121070.0,121060.0,0.28176325]
[1755168377696,0.27442039,121070.0,121060.0,0.43736325]
[1755168378456,0.27442039,121070.0,121060.0,0.43636325]
[1755168378860,0.27442039,121070.0,121060.0,0.43632325]
[1755168379066,0.27442039,121070.0,121060.0,0.28076325]
[1755168379658,0.20857268,121070.0,121060.0,0.43636325]
[1755168379876,0.20352268,121070.0,121060.0,0.43846325]
[1755168380102,0.20352268,121070.0,121060.0,0.48523958]
[1755168380307,0.20352268,121070.0,121060.0,0.43846325]
[1755168380516,0.20553268,121070.0,121060.0,0.43846325]
[1755168381136,0.20857268,121070.0,121060.0,0.43636325]
[1755168382797,0.20857268,121070.0,121060.0,0.28076325]
[1755168383031,0.76336983,121070.0,121060.0,0.19804]
[1755168383260,0.27542039,121070.0,121060.0,0.35308]
[1755168383466,0.76336983,121070.0,121060.0,0.35308]
[1755168383675,0.27542039,121070.0,121060.0,0.35296]
[1755168383880,0.76336983,121070.0,121060.0,0.19804]
[1755168384090,0.27542039,121070.0,121060.0,0.35296]
[1755168384294,0.76336983,121070.0,121060.0,0.35296]
[1755168384712,0.27542039,121070.0,121060.0,0.35296]
[1755168384919,0.20857268,121070.0,121060.0,0.388256]
[1755168385122,0.20857268,121070.0,121060.0,0.43778325]
[1755168385757,0.20857268,121070.0,121060.0,0.28286325]
[1755168385963,0.20352268,121070.0,121060.0,0.28286325]
[1755168386174,0.20352268,121070.0,121060.0,0.28600325]
[1755168386392,0.20352268,121070.0,121060.0,0.44060325]
[1755168386618,0.20352268,121070.0,121060.0,0.28600325]
[1755168386821,0.20352268,121070.0,121060.0,0.44052325]
[1755168387039,0.038329,121070.0,121060.0,0.46904358]
[1755168387252,0.20352268,121070.0,121060.0,0.30936358]
[1755168387459,0.20352268,121070.0,121060.0,0.43730325]
[1755168389204,0.037329,121070.0,121060.0,0.28600325]
[1755168389410,0.17774054,121080.0,121060.0,0.44108325]
[1755168389623,0.20250554,121080.0,121070.0,0.08689678]
[1755168389831,0.20250554,121080.0,121070.0,0.23993678]
[1755168390034,0.20250554,121080.0,121070.0,0.08482325]
[1755168390288,0.20250554,121080.0,121070.0,0.26756358]
[1755168390507,0.20250554,121080.0,121070.0,0.27070358]
[1755168390917,0.20250554,121080.0,121070.0,0.08796325]
[1755168391122,0.20250554,121080.0,121070.0,0.24192325]
[1755168391325,0.20250554,121080.0,121070.0,0.23878325]
[1755168391886,0.20250554,121080.0,121070.0,0.23866325]
[1755168392094,0.20250554,121080.0,121070.0,0.24168325]
[1755168392657,0.20855554,121080.0,121070.0,0.23640325]
[1755168392868,0.20855554,121080.0,121070.0,0.27984758]
[1755168393121,0.20855554,121080.0,121070.0,0.23640325]
[1755168394551,0.20855554,121080.0,121070.0,0.08272325]
[1755168394724,0.20551554,121080.0,121070.0,0.08482325]
[1755168394960,0.20855554,121080.0,121070.0,0.08272325]
[1755168395167,0.20855554,121080.0,121070.0,0.23608325]
[1755168395392,0.20855554,121080.0,121070.0,0.23604325]
[1755168396548,0.69650498,121080.0,121070.0,0.08272325]
[1755168396748,0.20855554,121080.0,121070.0,0.23576325]
[1755168396963,0.20855554,121080.0,121070.0,0.08272325]
[1755168397159,0.20855554,121080.0,121070.0,0.23568325]
[1755168398931,0.001,121080.0,121070.0,0.13140558]
[1755168399185,0.001,121080.0,121070.0,0.28432558]
[1755168399408,0.001,121080.0,121070.0,0.13140558]
[1755168399636,0.001,121080.0,121070.0,0.28400558]
[1755168399864,0.001,121080.0,121070.0,0.13140558]
[1755168400085,0.001,121080.0,121070.0,0.28400558]
[1755168400334,0.20298076,121090.0,121070.0,0.28400558]
[1755168400563,0.20298076,121090.0,121070.0,0.28175558]
[1755168400787,0.20298076,121090.0,121080.0,0.00325]
[1755168401001,0.20298076,121090.0,121080.0,0.08803325]
[1755168401215,0.20298076,121090.0,121080.0,0.08478325]
[1755168401425,0.20298076,121090.0,121080.0,0.2416662]
[1755168401632,0.20298076,121090.0,121080.0,0.24063325]
[1755168402044,0.20298076,121090.0,121080.0,0.26469658]
[1755168402465,0.02525436,121090.0,121080.0,0.11209658]
[1755168402679,0.00049236,121090.0,121080.0,0.26469658]
[1755168402893,0.00049236,121090.0,121080.0,0.15791]
[1755168403099,0.00049236,121090.0,121080.0,0.15894295]
[1755168403312,0.00049236,121090.0,121080.0,0.59446466]
[1755168403523,0.00049236,121090.0,121080.0,1.08603171]
[1755168403741,0.00049236,121090.0,121080.0,1.16851614]
[1755168404412,0.00049236,121090.0,121080.0,0.6805667]
[1755168404627,0.00049236,121090.0,121080.0,1.16851614]
[1755168406152,0.00049236,121090.0,121080.0,1.20609618]
[1755168406366,3.827e-05,121090.0,121080.0,1.11303171]
[1755168406581,3.827e-05,121090.0,121080.0,1.36169618]
[1755168406812,3.827e-05,121090.0,121080.0,1.37413618]
[1755168407039,3.827e-05,121090.0,121080.0,1.37713618]
[1755168407682,3.827e-05,121090.0,121080.0,1.22453618]
[1755168407887,3.827e-05,121090.0,121080.0,1.40125618]
[1755168408363,3.827e-05,121090.0,121080.0,1.24869618]
[1755168408576,3.827e-05,121090.0,121080.0,1.40125618]
[1755168409219,3.827e-05,121090.0,121080.0,1.22453618]
[1755168409436,3.827e-05,121090.0,121080.0,1.37709618]
[1755168409639,3.827e-05,121090.0,121080.0,1.40184618]
[1755168410491,3.827e-05,121090.0,121080.0,1.37684618]
[1755168410704,3.827e-05,121090.0,121080.0,1.40184618]
[1755168412687,3.827e-05,121090.0,121080.0,1.02191614]
[1755168412903,3.827e-05,121090.0,121080.0,0.66903768]
[1755168413116,3.827e-05,121090.0,121080.0,0.32903768]
[1755168413304,3.827e-05,121090.0,121080.0,0.09078325]
[1755168413552,3.827e-05,121090.0,121080.0,0.24330325]
[1755168413967,3.827e-05,121090.0,121080.0,0.58330325]
[1755168414177,3.827e-05,121090.0,121080.0,0.60075227]
[1755168414389,0.00212827,121090.0,121080.0,0.09078325]
[1755168414607,0.00212827,121090.0,121080.0,0.2701556]
[1755168417975,3.827e-05,121090.0,121080.0,0.1176356]
[1755168418379,3.827e-05,121090.0,121080.0,0.2701556]
[1755168419432,3.827e-05,121090.0,121080.0,1.10131504]
[1755168420353,3.827e-05,121090.0,121080.0,1.15145508]
[1755168420591,3.827e-05,121090.0,121080.0,1.30393508]
[1755168421085,3.827e-05,121090.0,121080.0,1.15145508]
[1755168421311,3.827e-05,121090.0,121080.0,0.81598564]
[1755168421531,3.827e-05,121090.0,121080.0,1.30393508]
[1755168422178,3.827e-05,121090.0,121080.0,0.81298564]
[1755168422390,3.827e-05,121090.0,121080.0,1.29793508]
[1755168422603,3.827e-05,121090.0,121080.0,1.30493508]
[1755168422815,3.827e-05,121090.0,121080.0,1.15245508]
[1755168423024,3.827e-05,121090.0,121080.0,1.30493508]
[1755168423946,3.827e-05,121090.0,121080.0,1.14945508]
[1755168424146,3.827e-05,121090.0,121080.0,1.30393508]
[1755168425178,3.827e-05,121090.0,121080.0,1.34033435]
[1755168425389,3.827e-05,121090.0,121080.0,1.67580379]
[1755168425597,3.827e-05,121090.0,121080.0,1.82824379]
[1755168425873,3.827e-05,121090.0,121080.0,1.79191897]
[1755168426137,3.827e-05,121090.0,121080.0,1.85753897]
[1755168426395,3.827e-05,121090.0,121080.0,1.85353897]
[1755168426892,3.827e-05,121090.0,121080.0,1.88128597]
[1755168427142,3.827e-05,121090.0,121080.0,1.87928597]
[1755168427399,3.827e-05,121090.0,121080.0,1.72984597]
[1755168427656,3.827e-05,121090.0,121080.0,1.90717717]
[1755168428449,3.827e-05,121090.0,121080.0,1.90713717]
[1755168429407,0.06984771,121140.0,121130.0,0.87039846]
[1755168429654,0.06984771,121140.0,121130.0,1.19010614]
[1755168429897,0.07184771,121140.0,121130.0,0.86726856]
[1755168430133,0.06984771,121140.0,121130.0,1.367658]
[1755168430382,0.06984771,121140.0,121130.0,1.370748]
[1755168430626,0.06984771,121140.0,121130.0,1.37089601]
[1755168431143,0.06984771,121140.0,121130.0,1.21849601]
[1755168431382,0.07184771,121140.0,121130.0,1.37089601]
[1755168431625,0.06984771,121140.0,121130.0,1.36780601]
[1755168431862,0.07184771,121140.0,121130.0,1.36780601]
[1755168432113,0.07184771,121140.0,121130.0,1.24821415]
[1755168432335,0.06984771,121140.0,121130.0,1.40366415]
[1755168432541,0.06984771,121140.0,121130.0,1.40057415]
[1755168432747,0.07084771,121140.0,121130.0,1.40057415]
[1755168432959,0.07084771,121140.0,121130.0,1.56568601]
[1755168433389,0.004,121140.0,121130.0,1.56877601]
[1755168433820,0.004,121140.0,121130.0,1.41641601]
[1755168434239,0.004,121140.0,121130.0,1.40362415]
[1755168434448,0.00916,121140.0,121130.0,1.07769657]
[1755168434656,0.00916,121140.0,121130.0,1.56564601]
[1755168434862,0.006,121140.0,121130.0,1.56564601]
[1755168435036,0.004,121140.0,121130.0,1.56564601]
[1755168435287,0.004,121140.0,121130.0,1.56873601]
[1755168435499,0.004,121140.0,121130.0,1.41641601]
[1755168435713,0.004,121140.0,121130.0,1.56873601]
[1755168435916,0.004,121140.0,121130.0,1.08078657]
[1755168436125,0.004,121140.0,121130.0,1.56873601]
[1755168436304,0.004,121140.0,121130.0,0.92846657]
[1755168436542,0.004,121140.0,121130.0,1.08078657]
[1755168436753,0.004,121140.0,121130.0,1.56873601]
[1755168436963,0.004,121140.0,121130.0,1.41641601]
[1755168437170,0.004,121140.0,121130.0,1.56873601]
[1755168437784,0.004,121140.0,121130.0,1.56500724]
[1755168438427,0.00916,121140.0,121130.0,0.36327569]
[1755168438641,0.00916,121140.0,121130.0,0.43307126]
[1755168438855,0.00916,121140.0,121130.0,0.77307126]
[1755168439064,0.00916,121140.0,121130.0,0.62079126]
[1755168439279,0.00916,121140.0,121130.0,0.77307126]
[1755168439701,0.00916,121140.0,121130.0,0.79052028]
[1755168439915,0.00916,121140.0,121130.0,0.87207231]
[1755168442000,0.00916,121140.0,121130.0,0.72189231]
[1755168442238,0.00916,121140.0,121130.0,0.87207231]
[1755168442467,0.00916,121140.0,121130.0,0.71979231]
[1755168442683,0.00916,121140.0,121130.0,0.87207231]
[1755168443316,0.00916,121140.0,121130.0,0.71979231]
[1755168443562,0.00916,121140.0,121130.0,0.87207231]
[1755168443980,0.00916,121140.0,121130.0,0.87203231]
[1755168445300,0.17425823,121140.0,121130.0,0.85458329]
[1755168445511,0.19798823,121140.0,121130.0,0.51458329]
[1755168445732,0.75278538,121140.0,121130.0,0.16442329]
[1755168445938,0.79256511,121140.0,121130.0,0.27750126]
[1755168446187,0.81731911,121140.0,121130.0,0.42974126]
[1755168446420,0.79009938,121140.0,121130.0,0.42974126]
[1755168446839,0.30214994,121140.0,121130.0,0.42974126]
[1755168447045,0.78909938,121140.0,121130.0,0.42974126]
[1755168447308,0.1651664,121090.0,121080.0,0.02201107]
[1755168447510,0.1671664,121090.0,121080.0,0.29321099]
[1755168447729,0.1703264,121090.0,121080.0,0.44545099]
[1755168448142,0.00516,121090.0,121080.0,0.44545099]
[1755168448354,0.1703264,121090.0,121080.0,0.44545099]
[1755168448562,0.1703264,121090.0,121080.0,0.48999609]
[1755168448767,0.1703264,121090.0,121080.0,0.4901174]
[1755168448978,0.1713264,121090.0,121080.0,0.4901174]
[1755168449191,0.1733264,121090.0,121080.0,0.4901174]
[1755168449430,0.1733264,121090.0,121080.0,0.3378774]
[1755168449686,0.1733264,121090.0,121080.0,0.4901574]
[1755168450879,0.1733264,121090.0,121080.0,0.3378774]
[1755168451111,0.1733264,121090.0,121080.0,0.4901574]
[1755168452284,0.1701664,121090.0,121080.0,0.4901574]
[1755168452736,0.1701664,121090.0,121080.0,0.2933323]
[1755168452936,0.1733264,121090.0,121080.0,0.4456123]
[1755168454954,0.1701664,121090.0,121080.0,0.4456123]
[1755168455168,0.1701664,121090.0,121080.0,0.2933323]
[1755168455393,0.1701664,121090.0,121080.0,0.4456123]
[1755168455611,0.1701664,121090.0,121080.0,0.49048253]
[1755168456748,0.1701664,121090.0,121080.0,0.49248253]
[1755168456970,0.1701664,121090.0,121080.0,0.49048253]
[1755168457192,0.1691664,121090.0,121080.0,0.49048253]
[1755168458388,0.1691664,121090.0,121080.0,0.33820253]
[1755168458622,0.1691664,121090.0,121080.0,0.49048253]
[1755168459796,0.1846964,121090.0,121080.0,0.32559479]
[1755168460038,0.78822555,121090.0,121080.0,0.28072456]
[1755168460288,0.78822555,121090.0,121080.0,0.43300456]
[1755168461000,0.78622555,121090.0,121080.0,0.43300456]
[1755168461234,0.79022555,121090.0,121080.0,0.43300456]
[1755168461527,0.78922555,121090.0,121080.0,0.43300456]
[1755168462017,0.79522555,121090.0,121080.0,0.43300456]
[1755168462497,0.30727611,121090.0,121080.0,0.43300456]
[1755168463664,0.2164584,121090.0,121080.0,0.28072456]
[1755168464143,0.2164584,121090.0,121080.0,0.46107702]
[1755168464376,0.2164584,121090.0,121080.0,0.43300456]
[1755168465352,0.2134884,121090.0,121080.0,0.43300456]
[1755168470260,0.2134884,121090.0,121080.0,0.28072456]
[1755168470479,0.2134884,121090.0,121080.0,0.43296456]
[1755168471128,0.2134884,121090.0,121080.0,0.28591456]
[1755168471374,0.2124884,121090.0,121080.0,0.43815456]
[1755168471609,0.2124884,121090.0,121080.0,0.31450602]
[1755168471877,0.034762,121090.0,121080.0,0.46674602]
[1755168472154,0.01,121090.0,121080.0,0.46674602]
[1755168472916,0.006,121090.0,121080.0,0.46674602]
[1755168473236,0.006,121090.0,121080.0,0.80674602]
[1755168473788,0.17339607,121110.0,121080.0,0.80674602]
[1755168474019,0.19815407,121110.0,121090.0,0.08694577]
[1755168474256,0.20030407,121110.0,121100.0,0.1542]
[1755168474492,0.20030407,121110.0,121100.0,0.24114534]
[1755168474734,0.21286407,121110.0,121100.0,0.08272325]
[1755168474971,0.1777264,121090.0,121080.0,0.19800131]
[1755168475209,0.1798764,121090.0,121080.0,0.28072456]
[1755168475440,0.1798764,121090.0,121080.0,0.43292456]
[1755168475679,0.1798764,121090.0,121080.0,0.45154288]
[1755168476161,0.2046374,121090.0,121080.0,0.45154288]
[1755168477634,0.2076374,121090.0,121080.0,0.28072456]
[1755168477867,0.2096374,121090.0,121080.0,0.28072456]
[1755168478350,0.2096374,121090.0,121080.0,0.43288456]
[1755168479764,0.2096374,121090.0,121080.0,0.28072456]
[1755168480007,0.2096374,121090.0,121080.0,0.43288456]
[1755168480537,0.70055684,121090.0,121080.0,0.43288456]
[1755168481031,0.2126074,121090.0,121080.0,0.28072456]
[1755168481226,0.96645684,121090.0,121080.0,0.43288456]
[1755168481715,0.96645684,121090.0,121080.0,0.28072456]
[1755168481986,0.96645684,121090.0,121080.0,0.43288456]
[1755168482503,0.96645684,121090.0,121080.0,0.43284456]
[1755168484587,1.0041886,121090.0,121080.0,0.43284456]
[1755168485037,1.0041886,121090.0,121080.0,0.28072456]
[1755168485244,1.0041886,121090.0,121080.0,0.43284456]
[1755168485819,1.0041886,121090.0,121080.0,0.35012131]
[1755168486258,1.0281586,121090.0,121080.0,0.19800131]
[1755168486463,1.02720546,121090.0,121080.0,0.35012131]
[1755168486668,1.02520546,121090.0,121080.0,0.35012131]
[1755168487091,1.02820546,121090.0,121080.0,0.35012131]
[1755168487301,0.76230546,121090.0,121080.0,0.35012131]
[1755168487514,0.75930546,121090.0,121080.0,0.35012131]
[1755168487721,0.73933546,121090.0,121080.0,0.38513344]
[1755168488412,0.73933546,121090.0,121080.0,0.35012131]
[1755168489177,0.25138602,121090.0,121080.0,0.35012131]
[1755168489382,0.73933546,121090.0,121080.0,0.35012131]
[1755168489829,0.73933546,121090.0,121080.0,0.35008131]
[1755168490582,0.73933546,121090.0,121080.0,0.19800131]